Cogmind - Beta 17 @@@ ROGUE MODE // 2026.07.06 @ 00:34:40 Player: VC94 Result: Destroyed by G-34 Mercenary with Small Laser Performance ------------- Evolutions (1) 500 Regions Visited (2) 400 Robots Destroyed (24) 120 Value Destroyed (376) 376 Prototype IDs (0) 0 Alien Tech Used (0) 0 Bonus (0) 0 TOTAL SCORE: 1396 Bonus ------- None Cogmind --------- Core Integrity 0/400 Matter 200/300 Energy 100/125 System Corruption 0% Temperature Cool (6) Movement Treading (160) Location -9/Materials Parts ------- > --- POWER (1) -------- Light Ion Engine > --- PROPULSION (3) --- Improved Treads Improved Treads > --- UTILITY (3) ------ Medium Storage Unit Improved Targeting Computer ECM Suite > --- WEAPON (2) ------- Particle Cannon Grenade Launcher > --- INVENTORY (10) --- Light Ion Engine Improved Targeting Computer Datajack Peak State ------------ > --- POWER ------------ Light Ion Engine > --- PROPULSION ------- Improved Treads Improved Treads > --- UTILITY ---------- Medium Storage Unit Improved Targeting Computer ECM Suite > --- WEAPON ----------- Particle Cannon Grenade Launcher > --- INVENTORY -------- Improved Targeting Computer Datajack [Rating: 12] Favorites ----------- Power Light Ion Engine Engine Light Ion Engine Power Core Light Nuclear Core Propulsion Aluminum Leg Treads Improved Treads Leg Aluminum Leg Utility Medium Storage Unit Device ECM Suite Storage Medium Storage Unit Processor Improved Targeting Computer Protection Light Armor Plating Weapon EM Pulse Gun Energy Gun EM Pulse Gun Energy Cannon Particle Cannon Ballistic Gun Assault Rifle Launcher Grenade Launcher Impact Weapon Hammer Special Melee Weapon Datajack Build | -11 -10 -9 ------- Run | Yrd Mat Mat Slots Evolved 2 | . . 2 Power . | . . . Propulsion 1 | . . 1 Utility 1 | . . 1 Weapon . | . . . Parts Attached 29 | 6 4 19 Power 7 | 1 . 6 Engine 6 | 1 . 5 Core 1 | . . 1 Reactor . | . . . Propulsion 5 | 2 . 3 Treads 2 | . . 2 Leg 3 | 2 . 1 Wheel . | . . . Hover . | . . . Flight . | . . . Utility 6 | 1 1 4 Device 2 | . 1 1 Storage 2 | 1 . 1 Processor 1 | . . 1 Hackware . | . . . Protection 1 | . . 1 Artifact . | . . . Weapon 11 | 2 3 6 Energy Gun 5 | 1 2 2 Energy Cannon 1 | . . 1 Ballistic Gun 2 | 1 1 . Ballistic Cannon . | . . . Launcher 1 | . . 1 Special Weapon . | . . . Impact Weapon 1 | . . 1 Slashing Weapon . | . . . Piercing Weapon . | . . . Special Melee Weapon 1 | . . 1 Unidentified Prototypes . | . . . Parts Lost 14 | . 3 11 Power 4 | . 1 3 Propulsion 3 | . . 3 Utility 2 | . . 2 Weapon 5 | . 2 3 Highest Loss Streak 11 | . 3 11 To Critical Strikes . | . . . Average Backups 2 | 1 3 2 Power . | . 1 . Propulsion . | . . . Utility . | . . . Weapon . | . . . Tool/Special . | . . . Unused Backups 3 | . 2 1 Power . | . . . Propulsion . | . . . Utility 1 | . . 1 Weapon 2 | . 2 . Tool/Special . | . . . Average Slot Usage (%) 70 | . 82 67 Engine 9 | . 6 10 Treads 1 | . . 2 Leg 11 | . 28 5 Device 8 | . 6 9 Storage 12 | . 14 11 Processor 5 | . . 7 Energy Gun 9 | . 16 7 Energy Cannon 3 | . . 5 Ballistic Gun 2 | . 9 . Launcher 2 | . . 2 Impact Weapon 2 | . . 3 Peak Build Rating 12 | 6 7 12 Average Rating 7 | 4 5 7 On Entrance 3 | . 6 5 Avg Prop Armor Cover (%) . | . . . Naked Turns . | . . . Heaviest Build 24 | 12 14 24 Greatest Support 46 | 20 20 46 Greatest Overweight (x) 7 | . . 7 Average Overweight (x) 1 | . . 2 Largest Inventory Capacity 10 | 8 8 10 Average Capacity 9 | 7 8 9 Most Carried 6 | 2 6 6 Average Carried 2 | 1 3 2 Final Capacity 10 | 8 8 10 Final Carried 6 | 2 6 3 Class Distribution -------------------- 100% | Mutant Dominant Class ---------------- Mutant | -10/Materials Mutant | -9/Materials Resources | -11 -10 -9 ----------- Run | Yrd Mat Mat Matter Collected 455 | 260 80 115 Remotely . | . . . Salvage Created 571 | . 180 391 Parts 40 | . 15 25 Haulers Intercepted 1 | . . 1 Recyclers Shooed 5 | . 2 3 Parts Field Recycled . | . . . Retrieved Matter . | . . . Parts Self-Destructed . | . . . Prevented . | . . . Parts Restored . | . . . Kills | -11 -10 -9 ------- Run | Yrd Mat Mat Combat Hostiles Destroyed 17 | . 5 12 Guns 10 | . 5 5 Cannons 2 | . . 2 AOE 4 | . . 4 Classes Destroyed 9 | . 4 5 Worker 3 | . . 3 Hauler 1 | . . 1 Mechanic 1 | . 1 . Operator 1 | . 1 . Watcher 1 | . . 1 Swarmer 12 | . 3 9 Grunt 3 | . 2 1 Brawler 1 | . . 1 Sentry 1 | . . 1 Best Kill Streak 3 | . 3 3 Combat Bots Only 3 | . 2 3 Max Kills in Single Turn 3 | . 2 3 Gunslinging . | . . . Exploded 3 | . . 3 Melee . | . . . Uniques/NPCs Destroyed . | . . . Combat | -11 -10 -9 -------- Run | Yrd Mat Mat Hostile Shots Fired 220 | . 73 147 Missed 61 | . 24 37 Hits 159 | . 49 110 Melee 2 | . . 2 Projectile 157 | . 49 108 Critical Strikes 6 | . . 6 Damage Taken 1832 | . 457 1375 Core 511 | . 101 410 Absorbed by Shields 56 | . . 56 Regen/Repaired (Parts) 71 | . . 71 Core Remaining (%) 79 | 100 59 . Volleys Fired 65 | . 26 39 Largest 2 | . 2 2 Hottest 98 | . 90 98 Shots Fired 101 | . 44 57 Gun 88 | . 44 44 Cannon 10 | . . 10 Launcher 3 | . . 3 Special . | . . . Kinetic 17 | . 17 . Thermal 34 | . 10 24 Explosive 3 | . . 3 Electromagnetic 47 | . 17 30 Robot Hit Streak 10 | . 10 7 Robot Miss Streak 8 | . 8 6 Penetration Max . | . . . Secondary Targets 2 | . . 2 Max Gunslinging Chain 1 | . . 1 Shots Hit Robots 68 | . 27 41 Core Hits 31 | . 11 20 Critical Kills . | . . . Critical Parts Destroyed . | . . . Critical Strikes 2 | . . 2 Burn 2 | . . 2 Melee Attacks 12 | . . 12 Impact 12 | . . 12 Slashing . | . . . Piercing . | . . . Sneak Attacks . | . . . Combat Hostiles . | . . . Follow-up Attacks . | . . . Damage Inflicted 1410 | . 383 1027 Guns 690 | . 360 330 Cannons 141 | . . 141 Explosions 395 | . 23 372 Melee 184 | . . 184 Ramming . | . . . Kinetic 163 | . 163 . Thermal 492 | . 133 359 Explosive 292 | . . 292 Electromagnetic 279 | . 87 192 Impact 184 | . . 184 Slashing . | . . . Piercing . | . . . Highest Corruption . | . . . Average Corruption . | . . . Corruption Purged . | . . . Corruption Blocked . | . . . Overload Shots . | . . . Overflow Damage 31 | . . 31 Projectiles . | . . . Explosions 19 | . . 19 Melee 12 | . . 12 Knockbacks 2 | . . 2 Impact 2 | . . 2 Kinetic . | . . . Secondary . | . . . Self-Inflicted Damage 86 | . 17 69 Shots 3 | . 1 2 Rammed . | . . . Targets Rammed . | . . . Kicked . | . . . Crushed . | . . . Highest Temperature 90 | . 27 90 Average Temperature 20 | . 16 22 Received Heat Transfer 527 | . 63 464 Siege Activations . | . . . Martial Activations . | . . . Shielding Activations . | . . . Robots Disrupted . | . . . Combat Hostiles . | . . . Robots Corrupted 1 | . . 1 Combat Hostiles 1 | . . 1 Parts Fried 3 | . . 3 Impact Corruptions 1 | . . 1 Robots Melted . | . . . Combat Hostiles . | . . . Parts Melted 3 | . 2 1 Heat Transferred 1260 | . 383 877 Parts Sabotaged . | . . . Parts Stolen . | . . . Parts Stripped . | . . . Power Chain Reactions 2 | . 1 1 Alert | -11 -10 -9 ------- Run | Yrd Mat Mat Maximum Alert Level . | . . . Low Security (%) 100 | 100 100 100 Level 1 . | . . . Level 2 . | . . . Level 3 . | . . . Level 4 . | . . . Level 5 . | . . . High Security . | . . . Max Security . | . . . Peak Influence 90 | . 80 90 Initial 22 | . . 22 Average 20 | . 28 18 Influence Increases 545 | . 183 362 Destroy 0b10 Robot/C 340 | . 100 240 Destroy 0b10 Robot/NC 35 | . 10 25 Destroy Leader 74 | . 20 54 Successful Hack 4 | . 4 . Disable Machine 15 | . . 15 Destroy Structure 32 | . 4 28 Lose Combat Pursuer 45 | . 45 . Influence Decreases 469 | . 130 339 Entered New Map 31 | . . 31 Time Decay 363 | . 100 263 Lost Part 75 | . 30 45 Squads Dispatched 2 | . 1 1 Investigation 1 | . . 1 Extermination . | . . . Reinforcement 1 | . 1 . Assault . | . . . Garrison . | . . . Intercept . | . . . Searches Triggered . | . . . Construction Impeded . | . . . Haulers Reinforced . | . . . Active Scanning Responses . | . . . Cargo Convoy Interrupts . | . . . Stealth | -11 -10 -9 --------- Run | Yrd Mat Mat Distress Signals 2 | . 2 . Communications Jammed . | . . . Distress Signals . | . . . Times Spotted 24 | . 8 16 Peak Tracking Total 4 | . 4 4 Tactical Retreats 3 | . 3 . ECM-based Alert Blocks 1 | . 1 . Traps | -11 -10 -9 ------- Run | Yrd Mat Mat Traps Triggered . | . . . Indirectly . | . . . Trap Hack Attempts . | . . . Triggered . | . . . Disarmed . | . . . Reprogrammed . | . . . Reused . | . . . Traps Extracted . | . . . Installed . | . . . Triggered . | . . . Machines | -11 -10 -9 ---------- Run | Yrd Mat Mat Machines Disabled 1 | . . 1 Max in Single Turn 1 | . . 1 Machines Repaired . | . . . Machines Dismantled . | . . . Machines Sabotaged . | . . . Overloaded Fab Kills . | . . . Hacking | -11 -10 -9 --------- Run | Yrd Mat Mat Machines Accessed 4 | . 2 2 Terminals 2 | . 2 . Fabricators . | . . . Repair Stations 1 | . . 1 Recycling Units . | . . . Scanalyzers 1 | . . 1 Garrison Access . | . . . Total Hacks 11 | . 4 7 Successful 9 | . 2 7 Failed 2 | . 2 . Catastrophic . | . . . Database Lockouts . | . . . Manual . | . . . Terminals 4 | . 4 . Fabricators . | . . . Repair Stations 4 | . . 4 Recycling Units . | . . . Scanalyzers 3 | . . 3 Garrison Access . | . . . Terminal Hacks 2 | . 2 . Locate Traps 2 | . 2 . Fabricator Hacks . | . . . Repair Station Hacks 4 | . . 4 Scan Component 2 | . . 2 Repair 2 | . . 2 Recycling Unit Hacks . | . . . Scanalyzer 3 | . . 3 Insert Component 1 | . . 1 Analyze 1 | . . 1 Retrieve Study 1 | . . 1 Garrison Access Hacks . | . . . Unauthorized Hacks . | . . . Terminals . | . . . Fabricators . | . . . Repair Stations . | . . . Recycling Units . | . . . Scanalyzers . | . . . Garrison Access . | . . . Data Cores Recovered . | . . . Used . | . . . Hacking Detections 1 | . . 1 Full Trace Events 1 | . . 1 Feedback Events . | . . . Feedback Blocked . | . . . Robot Schematics Acquired . | . . . Robots Built . | . . . Authchips . | . . . Time . | . . . Total Robot Build Rating . | . . . Part Schematics Acquired 1 | . . 1 Parts Built . | . . . Authchips . | . . . Time . | . . . Total Part Build Rating . | . . . Part Studies Acquired 1 | . . 1 Parts Repaired 2 | . . 2 Time 52 | . . 52 Parts Recycled . | . . . Recycled Matter . | . . . Retrieved Matter . | . . . Retrieved Components . | . . . Parts Scanalyzed 1 | . . 1 Part Schematics Acquired 1 | . . 1 Parts Damaged . | . . . Bothacking | -11 -10 -9 ------------ Run | Yrd Mat Mat Used RIF Installer . | . . . Robots Hacked . | . . . Non-combat . | . . . Combat . | . . . Robot Hacks Applied . | . . . Relay Couplers Released . | . . . Fabnet Peak Effective % . | . . . Robots Rewired . | . . . Allies Hacked . | . . . Hacks Repelled . | . . . Allies | -11 -10 -9 -------- Run | Yrd Mat Mat Total Allies . | . . . Largest Group . | . . . Highest-Rated Group . | . . . Highest-Rated Ally . | . . . Total Orders . | . . . Ally Attacks . | . . . Total Damage . | . . . Kills . | . . . Allies Corrupted . | . . . Allies Melted . | . . . Intel | -11 -10 -9 ------- Run | Yrd Mat Mat Active Infowar (turns) 770 | . 148 622 ECM 770 | . 148 622 Robot Analysis Total . | . . . Derelict Logs Recovered . | . . . Drone Launches . | . . . Drone Recoveries . | . . . Exploration | -11 -10 -9 ------------- Run | Yrd Mat Mat Turns Passed 1426 | 63 328 1035 Spaces Moved 603 | 49 200 354 Core 157 | 8 . 149 Treads 41 | . . 41 Legs 405 | 41 200 164 Wheels . | . . . Hover . | . . . Flight . | . . . Fastest Speed 50 | 50 120 120 Average Speed 182 | 108 120 228 Slowest Speed 400 | 120 120 400 Overloaded Moves . | . . . Propulsion Burnouts . | . . . Robots Hopped . | . . . Potential Cave-ins . | . . . Cave-ins Triggered . | . . . Exploration Rate (%) 24 | 4 44 24 Regions Visited 2 Branch Regions . Pre-discovered Areas . | . . . Known Exits Taken . | . . . Unknown Exits Taken 2 | 1 1 . Scrap Searched . | . . . Spaces Dug . | . . . Terrain Destroyed 28 | . 3 25 Melee . | . . . Projectile . | . . . AOE 28 | . 3 25 Terrain Rammed . | . . . Walls Destroyed . | . . . Machines Disabled . | . . . Actions | -11 -10 -9 --------- Run | Yrd Mat Mat Total 794 | 56 244 494 Wait 63 | . 5 58 Move 601 | 48 199 354 Hop . | . . . Pick Up 11 | 2 6 3 Fast Attach 21 | 6 3 12 Attach 7 | . 1 6 Detach 1 | . 1 . Swap 6 | . . 6 Drop 7 | . 3 4 Fire 65 | . 26 39 Melee 12 | . . 12 Ram . | . . . Kick . | . . . Crush . | . . . Escape Stasis . | . . . Rewire . | . . . Trap . | . . . Miscellaneous . | . . . Route ------- -11/Scrapyard -10/Materials -9/Materials History --------- Turn | Location | Event 8 | -11/Scrapyard | Discovered new exit (range 16) 64 | -11/Scrapyard | Entered Materials 273 | -10/Materials | Lost 3 parts (1p2w) 302 | -10/Materials | Build established: Mutant 353 | -10/Materials | Discovered new exit (range 13) 392 | -10/Materials | Entered another Materials area 392 | -9/Materials | Evolved 2 slots: Propulsion x1, Utility x1 690 | -9/Materials | Core integrity fell below 50% 725 | -9/Materials | Core integrity fell below 20% 740 | -9/Materials | Lost 11 parts (3p3n2u3w) 1373 | -9/Materials | Repaired ECM Suite 1401 | -9/Materials | Repaired Grenade Launcher 1427 | -9/Materials | Destroyed by G-34 Mercenary with Small Laser Last Messages --------------- 01373_ Acquired ECM Suite. 01375_ Connecting with Repair Station... >>Scan(Grenade Launcher) Scanning Grenade Launcher... Ready to Repair: Grenade Launcher Rating: 1 Time: 26 >>Repair Repairing Grenade Launcher... ETC: 26 01375_ ALERT: Suspicious activity at Repair Station M002. Dispatching Investigation squad. 01401_ Repair station completes Grenade Launcher repairs. 01401_ Acquired Grenade Launcher. 01416_ S-10 Pest destroyed. 01416_ Destroyed Flight Unit. 01416_ S-10 Pest destroyed. 01427_ The unstable cave ceiling collapses. Map ----- +----------------------------------------------------+ | | | | | | | | | | | | | | | | | | | ?????????????????????????????????? | | ?????????????????????????????????? | | ?????????????????????????????????? | | ?????????????????????????????????? | | ?#????????####???????????????????? | | ?# ???????# #???????????????????? | | ?# ??????# #???????????????????? | | ?? ""????+ +???????????????????? | | ?? "????# #???????????????????? | | ??? ???# ###############?????? | | ???? ???# ## " #?????? | | ????? ???# ## //! """ #?????? | | ?????? ##?# ## / ! """ #?????? | | ########### ## / ! """ #???##? | | # Y# ## #??? ? | | # """ %= ##+###########??# #? | | # R"[@%[g #? ???# #? | | # """ =* T #?""" ??# #? | | # # ### # """ #?# ## | | ########### ##### # """ #?# # | | ????# + + #?# + | | ????# """ # # """ ""#?# # | | ???????""""" # # """ T"### # | | ???????""""" # #?""" "?# # | | ????????"""" # #? ?# + | | ????????""" # ########## # | | ???????? ! # # | | ????????######### ## | | ???????????######+#### ##### ## | | ???????????# # #???## # | | ???????????# # #???? # | | ???????????# #+######[ % | | ???????????# #* # | | ???????????# # | | ???????????# # | | ???????????# # [% # | | ???????????# # # ## | | ???????????########### # | | ?????????????????????#% + | | ?????????????????????# ] # | | ?????????????????????# #+##+# | +----------------------------------------------------+ Best States ------------- Heat Dissipation 28 Energy Generation 14 Energy Capacity 265 Matter Stores 300 Matter Capacity 300 Sight Range 16 Terrain Scan Density 10 ECM Strength 1 Armor Coverage 150 Evasion (%) 55 Targeting Accuracy 6 Recoil Reduction 2 Item Schematics ----------------- Datajack | -9/Materials | Scanalyzed Robot Schematics ------------------ None Fabricated ------------ Nothing Repaired ---------- ECM Suite | 15% | -9/Materials Grenade Launcher | 10% | -9/Materials Studied --------- Datajack | -9/Materials | Hacked Alien Tech Used ----------------- None Achievements -------------- None Challenges ------------ None Game ------ Seed BombTechScanner Manual? 0 Play Time 00:12:40 Cumulative 20.2 hours Start 2026.07.06 @ 00:22:21 End 2026.07.06 @ 00:34:40 Sessions 1 Manual Loads 0 Difficulty Rogue Special Mode None Game No. 42 Rogue 42 Adventurer 0 Explorer 0 Win Type - Total 0 Types 0/0/0/0/0/0/0/0/0/0 Lore% 5 Gallery% 17 Achievement% 13 Wizard Run 0 Options --------- Layout 1 ASCII 0 Keyboard 0 Movement Arrows Keybinds 0 Fullscreen 1 Font 36/Smallcaps Map View 51x40 Zoom Use 0% Tactical HUD 1 Map Filters NONE Filters NONE Steam 1 RUN: 1562516d-dd9f-4911-be00-cef33927eca0